[Event "*** SCC Grand Prix: Titled Tuesday Blitz"]
[Site "Chess.com"]
[Date "2020.07.14"]
[Round "5"]
[White "Chessbard1972"]
[Black "ailime26"]
[Result "1-0"]
[WhiteElo "2276"]
[BlackElo "1868"]
[TimeControl "180+1"]
[EndTime "10:54:24 PDT"]
[Termination "Chessbard1972 won by resignation"]

1. d4 {[%clk 0:02:58.6]} 1... d5 {[%clk 0:02:52.6]} 2. c4 {[%clk 0:02:53.8]}
2... e6 {[%clk 0:02:47.1]} 3. Nc3 {[%clk 0:02:52.9]} 3... Nf6 {[%clk 0:02:45.1]}
4. Bg5 {[%clk 0:02:52.2]} 4... Be7 {[%clk 0:02:28.3]} 5. e3 {[%clk 0:02:46.4]}
5... Nbd7 {[%clk 0:02:21]} 6. cxd5 {[%clk 0:02:45.3]} 6... Nxd5 {[%clk
0:01:55.9]} 7. Bxe7 {[%clk 0:02:43.9]} 7... Qxe7 {[%clk 0:01:46.9]} 8. Rc1
{[%clk 0:02:42.3]} 8... O-O {[%clk 0:01:41.3]} 9. Nxd5 {[%clk 0:02:36.4]} 9...
exd5 {[%clk 0:01:39.3]} 10. Rxc7 {[%clk 0:02:35.6]} 10... Qd6 {[%clk 0:00:59.5]}
11. Rc1 {[%clk 0:02:33.2]} 11... Nf6 {[%clk 0:00:58]} 12. Bd3 {[%clk 0:02:29.1]}
12... Bg4 {[%clk 0:00:54.4]} 13. Ne2 {[%clk 0:02:24]} 13... Rac8 {[%clk
0:00:43.9]} 14. O-O {[%clk 0:02:20.9]} 14... Qb6 {[%clk 0:00:32.7]} 15. f3
{[%clk 0:02:13.6]} 15... Be6 {[%clk 0:00:29.4]} 16. Qd2 {[%clk 0:02:12.5]} 16...
Rc6 {[%clk 0:00:26.5]} 17. Nc3 {[%clk 0:02:10.8]} 17... Rfc8 {[%clk 0:00:19.7]}
18. Rcd1 {[%clk 0:02:05.6]} 18... a6 {[%clk 0:00:13.7]} 19. Qf2 {[%clk
0:02:01.7]} 19... Qb4 {[%clk 0:00:10.6]} 20. h3 {[%clk 0:01:55.5]} 20... b5
{[%clk 0:00:09.4]} 21. e4 {[%clk 0:01:51.1]} 21... dxe4 {[%clk 0:00:07.1]} 22.
fxe4 {[%clk 0:01:50.4]} 22... R6c7 {[%clk 0:00:06.7]} 23. d5 {[%clk 0:01:49.2]}
23... Bd7 {[%clk 0:00:05.1]} 24. e5 {[%clk 0:01:44.3]} 24... Ne8 {[%clk
0:00:02.3]} 25. Qxf7+ {[%clk 0:01:42.9]} 1-0

[Event "*** SCC Grand Prix: Titled Tuesday Blitz"]
[Site "Chess.com"]
[Date "2020.07.14"]
[Round "5"]
[White "Efremov_Vlad"]
[Black "if_name_main_a"]
[Result "1/2-1/2"]
[WhiteElo "2235"]
[BlackElo "2413"]
[TimeControl "180+1"]
[EndTime "10:54:25 PDT"]
[Termination "Game drawn by repetition"]

1. d4 {[%clk 0:03:00.9]} 1... Nf6 {[%clk 0:03:00]} 2. c4 {[%clk 0:03:00.9]} 2...
e6 {[%clk 0:03:00.4]} 3. Nf3 {[%clk 0:03:00.6]} 3... b6 {[%clk 0:03:00.3]} 4. g3
{[%clk 0:02:58.9]} 4... Bb7 {[%clk 0:03:00.6]} 5. Bg2 {[%clk 0:02:59.1]} 5...
Be7 {[%clk 0:03:01.1]} 6. O-O {[%clk 0:02:59.4]} 6... O-O {[%clk 0:03:01.6]} 7.
Nc3 {[%clk 0:03:00]} 7... d6 {[%clk 0:03:02.1]} 8. Qc2 {[%clk 0:02:56.2]} 8...
Nbd7 {[%clk 0:03:01.9]} 9. e4 {[%clk 0:02:16.9]} 9... c5 {[%clk 0:02:51.6]} 10.
e5 {[%clk 0:02:07.3]} 10... Ne8 {[%clk 0:02:39.3]} 11. dxc5 {[%clk 0:01:41.2]}
11... Nxc5 {[%clk 0:02:32.4]} 12. Rd1 {[%clk 0:01:35.9]} 12... Qb8 {[%clk
0:02:23.5]} 13. Bf4 {[%clk 0:01:33]} 13... dxe5 {[%clk 0:02:19.4]} 14. Bxe5
{[%clk 0:01:32.4]} 14... Bd6 {[%clk 0:02:19.3]} 15. Bxd6 {[%clk 0:01:28.8]}
15... Nxd6 {[%clk 0:02:20.2]} 16. Ng5 {[%clk 0:01:17.3]} 16... g6 {[%clk
0:02:08.2]} 17. Bxb7 {[%clk 0:01:02.1]} 17... Ncxb7 {[%clk 0:02:09.1]} 18. Nge4
{[%clk 0:01:02]} 18... Rd8 {[%clk 0:01:42.6]} 19. Nxd6 {[%clk 0:00:59.2]} 19...
Nxd6 {[%clk 0:01:42.2]} 20. Ne4 {[%clk 0:00:58.1]} 20... Nf5 {[%clk 0:01:37.3]}
21. Qc3 {[%clk 0:00:51.4]} 21... Rxd1+ {[%clk 0:01:26.3]} 22. Rxd1 {[%clk
0:00:52.3]} 22... e5 {[%clk 0:01:26.9]} 23. f4 {[%clk 0:00:42.8]} 23... Nd4
{[%clk 0:01:26.2]} 24. Qe3 {[%clk 0:00:31.4]} 24... Nf5 {[%clk 0:01:13.7]} 25.
Qc3 {[%clk 0:00:30.9]} 25... Nd4 {[%clk 0:01:13.7]} 26. Qe3 {[%clk 0:00:30.7]}
26... Nf5 {[%clk 0:01:13.8]} 27. Qc3 {[%clk 0:00:30.6]} 1/2-1/2

[Event "*** SCC Grand Prix: Titled Tuesday Blitz"]
[Site "Chess.com"]
[Date "2020.07.14"]
[Round "5"]
[White "GGfrances"]
[Black "Zablotsky"]
[Result "1/2-1/2"]
[WhiteElo "2381"]
[BlackElo "2580"]
[TimeControl "180+1"]
[EndTime "10:54:26 PDT"]
[Termination "Game drawn by repetition"]

1. e4 {[%clk 0:03:00.9]} 1... Nc6 {[%clk 0:02:54.3]} 2. Nf3 {[%clk 0:02:59.5]}
2... e5 {[%clk 0:02:54.5]} 3. Bc4 {[%clk 0:02:56.4]} 3... d6 {[%clk 0:02:55.4]}
4. d4 {[%clk 0:02:49.2]} 4... Bg4 {[%clk 0:02:56.3]} 5. h3 {[%clk 0:02:32.7]}
5... Bxf3 {[%clk 0:02:54.9]} 6. Qxf3 {[%clk 0:02:32.8]} 6... Nf6 {[%clk
0:02:54.5]} 7. Bb5 {[%clk 0:02:21.9]} 7... exd4 {[%clk 0:02:52.9]} 8. c3 {[%clk
0:02:22]} 8... a6 {[%clk 0:02:52.8]} 9. Bxc6+ {[%clk 0:02:16.4]} 9... bxc6
{[%clk 0:02:52.9]} 10. cxd4 {[%clk 0:02:14.6]} 10... Be7 {[%clk 0:02:52.5]} 11.
Nc3 {[%clk 0:02:11.9]} 11... Nd7 {[%clk 0:02:50.8]} 12. O-O {[%clk 0:02:07.5]}
12... c5 {[%clk 0:02:51.7]} 13. Be3 {[%clk 0:01:58.7]} 13... cxd4 {[%clk
0:02:51.4]} 14. Bxd4 {[%clk 0:01:58.5]} 14... Bf6 {[%clk 0:02:49.8]} 15. Rad1
{[%clk 0:01:52.1]} 15... O-O {[%clk 0:02:49.6]} 16. Nd5 {[%clk 0:01:49.7]} 16...
Bxd4 {[%clk 0:02:49.3]} 17. Rxd4 {[%clk 0:01:48.9]} 17... Re8 {[%clk 0:02:48.9]}
18. Rfd1 {[%clk 0:01:44.6]} 18... a5 {[%clk 0:02:47.3]} 19. Qc3 {[%clk
0:01:38.4]} 19... Nc5 {[%clk 0:02:34]} 20. f3 {[%clk 0:01:37.6]} 20... Ne6
{[%clk 0:02:33.7]} 21. Ra4 {[%clk 0:01:31.8]} 21... c5 {[%clk 0:02:27.4]} 22.
Kh1 {[%clk 0:01:28.2]} 22... h6 {[%clk 0:02:26.9]} 23. Ne3 {[%clk 0:01:25.3]}
23... Nd4 {[%clk 0:02:26.6]} 24. Nf5 {[%clk 0:01:19.5]} 24... Nxf5 {[%clk
0:02:26.2]} 25. exf5 {[%clk 0:01:19.4]} 25... h5 {[%clk 0:02:26]} 26. f6 {[%clk
0:01:15.2]} 26... g6 {[%clk 0:02:25.7]} 27. Re4 {[%clk 0:01:12.4]} 27... Re6
{[%clk 0:02:22.7]} 28. Rde1 {[%clk 0:01:09.7]} 28... Rxe4 {[%clk 0:02:22.3]} 29.
fxe4 {[%clk 0:01:07.9]} 29... Qc8 {[%clk 0:02:22.2]} 30. e5 {[%clk 0:01:05.8]}
30... Qe6 {[%clk 0:02:21.8]} 31. b3 {[%clk 0:01:02.4]} 31... Re8 {[%clk
0:02:20.2]} 32. Qxa5 {[%clk 0:00:59.7]} 32... dxe5 {[%clk 0:02:19.4]} 33. Qxc5
{[%clk 0:00:57.6]} 33... Qxf6 {[%clk 0:02:19.3]} 34. b4 {[%clk 0:00:55.5]} 34...
Qa6 {[%clk 0:02:18.9]} 35. Qd5 {[%clk 0:00:52.8]} 35... e4 {[%clk 0:02:18.7]}
36. Rxe4 {[%clk 0:00:49.9]} 36... Rxe4 {[%clk 0:02:18.4]} 37. Qxe4 {[%clk
0:00:49.7]} 37... Qxa2 {[%clk 0:02:18.2]} 38. Qe8+ {[%clk 0:00:47.1]} 38... Kh7
{[%clk 0:02:17.8]} 39. Qe7 {[%clk 0:00:43.8]} 39... Kg8 {[%clk 0:02:16.7]} 40.
Qe8+ {[%clk 0:00:41.7]} 40... Kh7 {[%clk 0:02:16.1]} 41. Qe7 {[%clk 0:00:41.9]}
41... Qb1+ {[%clk 0:02:14.9]} 42. Kh2 {[%clk 0:00:37.9]} 42... Qf5 {[%clk
0:02:14]} 43. Qc5 {[%clk 0:00:34.9]} 43... Qf4+ {[%clk 0:02:14]} 44. Kh1 {[%clk
0:00:31.8]} 44... Qf1+ {[%clk 0:02:13.7]} 45. Kh2 {[%clk 0:00:31.7]} 45... Qf4+
{[%clk 0:02:13.5]} 46. Kh1 {[%clk 0:00:32.1]} 46... h4 {[%clk 0:02:13.2]} 47. b5
{[%clk 0:00:31.8]} 47... Qf1+ {[%clk 0:02:12.9]} 48. Kh2 {[%clk 0:00:32.1]}
48... Qf4+ {[%clk 0:02:12]} 49. Kh1 {[%clk 0:00:32.4]} 49... Qf1+ {[%clk
0:02:11.1]} 50. Kh2 {[%clk 0:00:32.8]} 50... Qf4+ {[%clk 0:02:10.8]} 51. Kh1
{[%clk 0:00:32.8]} 1/2-1/2

[Event "*** SCC Grand Prix: Titled Tuesday Blitz"]
[Site "Chess.com"]
[Date "2020.07.14"]
[Round "5"]
[White "diamonds13"]
[Black "ChainsOfFantasia"]
[Result "0-1"]
[WhiteElo "2242"]
[BlackElo "2470"]
[TimeControl "180+1"]
[EndTime "10:54:26 PDT"]
[Termination "ChainsOfFantasia won by resignation"]

1. d4 {[%clk 0:03:00.9]} 1... Nf6 {[%clk 0:03:00]} 2. c4 {[%clk 0:03:01]} 2...
e6 {[%clk 0:03:00.5]} 3. Nc3 {[%clk 0:03:00.2]} 3... d5 {[%clk 0:03:01.4]} 4.
cxd5 {[%clk 0:02:55.1]} 4... exd5 {[%clk 0:03:02.3]} 5. Bg5 {[%clk 0:02:54.8]}
5... Be7 {[%clk 0:02:55.6]} 6. e3 {[%clk 0:02:53.5]} 6... c6 {[%clk 0:02:55.2]}
7. Bd3 {[%clk 0:02:53.3]} 7... Nbd7 {[%clk 0:02:55.5]} 8. Nge2 {[%clk
0:02:53.3]} 8... Nh5 {[%clk 0:02:55.8]} 9. Bxe7 {[%clk 0:02:49.9]} 9... Qxe7
{[%clk 0:02:56.7]} 10. Qc2 {[%clk 0:02:46.6]} 10... g6 {[%clk 0:02:49.8]} 11. h3
{[%clk 0:02:46.2]} 11... Nb6 {[%clk 0:02:49.9]} 12. g4 {[%clk 0:02:44.6]} 12...
Ng7 {[%clk 0:02:50.2]} 13. O-O-O {[%clk 0:02:32.5]} 13... Be6 {[%clk 0:02:34.1]}
14. a4 {[%clk 0:02:22.9]} 14... Qb4 {[%clk 0:02:20.2]} 15. Nf4 {[%clk
0:02:12.8]} 15... O-O-O {[%clk 0:02:07.5]} 16. Bb5 {[%clk 0:02:07.8]} 16... cxb5
{[%clk 0:01:50.5]} 17. Nd3 {[%clk 0:01:56.1]} 17... Qc4 {[%clk 0:01:46.8]} 18.
axb5 {[%clk 0:01:43.1]} 18... Kb8 {[%clk 0:01:43.9]} 19. Kb1 {[%clk 0:01:41.4]}
19... h5 {[%clk 0:01:38]} 20. f3 {[%clk 0:01:32.9]} 20... hxg4 {[%clk
0:01:37.2]} 21. fxg4 {[%clk 0:01:31.2]} 21... f5 {[%clk 0:01:35.3]} 22. Nc5
{[%clk 0:01:24.3]} 22... fxg4 {[%clk 0:01:34]} 23. b3 {[%clk 0:01:22.9]} 23...
Qb4 {[%clk 0:01:33.4]} 24. Kb2 {[%clk 0:01:03.4]} 24... Bf5 {[%clk 0:01:31.9]}
25. Qe2 {[%clk 0:01:02.8]} 25... Nc4+ {[%clk 0:01:18.2]} 26. Ka1 {[%clk
0:00:48.8]} 26... Qxc3+ {[%clk 0:01:14.6]} 27. Ka2 {[%clk 0:00:44.5]} 0-1

[Event "*** SCC Grand Prix: Titled Tuesday Blitz"]
[Site "Chess.com"]
[Date "2020.07.14"]
[Round "5"]
[White "Shuvalov"]
[Black "MacDaddyMac"]
[Result "1-0"]
[WhiteElo "2491"]
[BlackElo "2311"]
[TimeControl "180+1"]
[EndTime "10:54:27 PDT"]
[Termination "Shuvalov won by resignation"]

1. Nf3 {[%clk 0:02:57.9]} 1... Nf6 {[%clk 0:02:59.5]} 2. c4 {[%clk 0:02:57.7]}
2... c5 {[%clk 0:02:59.8]} 3. g3 {[%clk 0:02:57.4]} 3... g6 {[%clk 0:02:59.8]}
4. Bg2 {[%clk 0:02:57.9]} 4... Bg7 {[%clk 0:03:00.3]} 5. O-O {[%clk 0:02:58.5]}
5... O-O {[%clk 0:03:00.8]} 6. Nc3 {[%clk 0:02:59.1]} 6... Nc6 {[%clk
0:03:00.9]} 7. d4 {[%clk 0:02:59.4]} 7... cxd4 {[%clk 0:03:00.8]} 8. Nxd4 {[%clk
0:03:00.3]} 8... Nxd4 {[%clk 0:03:01]} 9. Qxd4 {[%clk 0:03:01.2]} 9... d6 {[%clk
0:03:01.1]} 10. Qh4 {[%clk 0:02:58.9]} 10... Be6 {[%clk 0:02:56.3]} 11. Bd2
{[%clk 0:02:57.4]} 11... Bxc4 {[%clk 0:02:55.7]} 12. Qxc4 {[%clk 0:02:56.7]}
12... Rc8 {[%clk 0:02:54]} 13. Qb3 {[%clk 0:02:54.4]} 13... b6 {[%clk 0:02:51]}
14. Rac1 {[%clk 0:02:51.6]} 14... Qd7 {[%clk 0:02:45]} 15. Rfd1 {[%clk
0:02:49.7]} 15... Rc5 {[%clk 0:02:44]} 16. Be3 {[%clk 0:02:48.8]} 16... Rh5
{[%clk 0:02:40.5]} 17. Nd5 {[%clk 0:02:38]} 17... Nxd5 {[%clk 0:02:20.9]} 18.
Rxd5 {[%clk 0:02:38.9]} 18... e5 {[%clk 0:02:20.1]} 19. Rcd1 {[%clk 0:02:25.6]}
19... Rd8 {[%clk 0:02:15.6]} 20. Qb5 {[%clk 0:02:02.5]} 20... Qe6 {[%clk
0:02:13.5]} 21. Qc6 {[%clk 0:01:59.5]} 21... Bf8 {[%clk 0:02:11.9]} 22. a4
{[%clk 0:01:49.9]} 22... Qg4 {[%clk 0:01:51.6]} 23. Bf3 {[%clk 0:01:46.4]} 23...
Qh3 {[%clk 0:01:51.3]} 24. Bxh5 {[%clk 0:01:46.1]} 24... gxh5 {[%clk 0:01:52.2]}
25. Qc4 {[%clk 0:01:41.4]} 25... Be7 {[%clk 0:01:45.5]} 26. Qe4 {[%clk
0:01:39.6]} 26... f5 {[%clk 0:01:40.6]} 27. Qg2 {[%clk 0:01:37.5]} 27... Qg4
{[%clk 0:01:40.7]} 28. Qf3 {[%clk 0:01:34.5]} 28... Qg6 {[%clk 0:01:36.1]} 29.
Rc1 {[%clk 0:01:30.1]} 29... Qe6 {[%clk 0:01:29.5]} 30. Rdd1 {[%clk 0:01:25.9]}
30... h4 {[%clk 0:01:28.8]} 31. Qd5 {[%clk 0:01:25.4]} 31... Qxd5 {[%clk
0:01:28.1]} 32. Rxd5 {[%clk 0:01:26.3]} 32... hxg3 {[%clk 0:01:28.6]} 33. hxg3
{[%clk 0:01:26.2]} 33... Kf7 {[%clk 0:01:29.5]} 34. Rc7 {[%clk 0:01:25.3]} 34...
Ke6 {[%clk 0:01:30.4]} 35. Rd1 {[%clk 0:01:25.2]} 35... Ra8 {[%clk 0:01:28.4]}
36. Rdc1 {[%clk 0:01:24.5]} 36... f4 {[%clk 0:01:21.2]} 37. gxf4 {[%clk
0:01:23]} 37... exf4 {[%clk 0:01:21.6]} 38. Bxf4 {[%clk 0:01:23.2]} 38... Rg8+
{[%clk 0:01:21.6]} 39. Kf1 {[%clk 0:01:20.8]} 39... a5 {[%clk 0:01:19.9]} 40.
Rb7 {[%clk 0:01:17]} 40... Rg4 {[%clk 0:01:19.4]} 41. e3 {[%clk 0:01:15.2]}
41... Rh4 {[%clk 0:01:18.3]} 42. Ke2 {[%clk 0:01:14.7]} 42... Bd8 {[%clk
0:01:16.5]} 43. Rc8 {[%clk 0:01:13.6]} 43... Bf6 {[%clk 0:01:15]} 44. Rxb6
{[%clk 0:01:13.2]} 44... Be7 {[%clk 0:01:15.3]} 45. Re8 {[%clk 0:01:12.3]} 45...
Kd7 {[%clk 0:01:13.9]} 46. Rxe7+ {[%clk 0:01:12.6]} 46... Kxe7 {[%clk
0:01:14.8]} 47. Bg5+ {[%clk 0:01:13.2]} 1-0

[Event "*** SCC Grand Prix: Titled Tuesday Blitz"]
[Site "Chess.com"]
[Date "2020.07.14"]
[Round "5"]
[White "SergeyKarjakin"]
[Black "JosefineHeinemann"]
[Result "1-0"]
[WhiteElo "2962"]
[BlackElo "2639"]
[TimeControl "180+1"]
[EndTime "10:54:28 PDT"]
[Termination "SergeyKarjakin won by checkmate"]

1. e4 {[%clk 0:03:00.9]} 1... c5 {[%clk 0:02:57.3]} 2. Nf3 {[%clk 0:03:01.3]}
2... d6 {[%clk 0:02:57.9]} 3. d4 {[%clk 0:03:01.9]} 3... cxd4 {[%clk 0:02:58.8]}
4. Nxd4 {[%clk 0:03:02.4]} 4... Nf6 {[%clk 0:02:59.1]} 5. Nc3 {[%clk 0:03:03.1]}
5... a6 {[%clk 0:02:59.3]} 6. Bd3 {[%clk 0:03:03.7]} 6... g6 {[%clk 0:02:58.2]}
7. Be3 {[%clk 0:03:02.7]} 7... Bg7 {[%clk 0:02:58.6]} 8. f3 {[%clk 0:03:02.5]}
8... O-O {[%clk 0:02:58.6]} 9. Qd2 {[%clk 0:03:03.1]} 9... Nc6 {[%clk 0:02:59]}
10. O-O-O {[%clk 0:03:03.3]} 10... Nxd4 {[%clk 0:02:58]} 11. Bxd4 {[%clk
0:03:03]} 11... b5 {[%clk 0:02:57.6]} 12. h4 {[%clk 0:02:56.2]} 12... Be6 {[%clk
0:02:44.4]} 13. Kb1 {[%clk 0:02:43.5]} 13... b4 {[%clk 0:02:32.1]} 14. Na4
{[%clk 0:02:39.9]} 14... a5 {[%clk 0:02:18.7]} 15. h5 {[%clk 0:02:32.9]} 15...
Rb8 {[%clk 0:02:02.7]} 16. hxg6 {[%clk 0:02:32.5]} 16... fxg6 {[%clk 0:02:03.6]}
17. b3 {[%clk 0:02:28.8]} 17... Qc7 {[%clk 0:01:56.1]} 18. g4 {[%clk 0:02:25]}
18... Rfc8 {[%clk 0:01:40]} 19. Qh2 {[%clk 0:02:21.6]} 19... Kf8 {[%clk
0:01:23.6]} 20. e5 {[%clk 0:02:14]} 20... Ne8 {[%clk 0:01:13.7]} 21. exd6 {[%clk
0:01:35.8]} 21... Qxd6 {[%clk 0:01:12.9]} 22. Bxg7+ {[%clk 0:01:34.7]} 22...
Nxg7 {[%clk 0:01:05.5]} 23. Qxh7 {[%clk 0:01:29.2]} 23... Qf4 {[%clk 0:01:00.2]}
24. Qxg6 {[%clk 0:01:26.7]} 24... Bf7 {[%clk 0:00:47.8]} 25. Rh8+ {[%clk
0:01:23.9]} 25... Bg8 {[%clk 0:00:47.4]} 26. Rdh1 {[%clk 0:01:12.5]} 26... Qf6
{[%clk 0:00:37.9]} 27. Rxg8+ {[%clk 0:01:10.9]} 27... Kxg8 {[%clk 0:00:37.2]}
28. Rh8+ {[%clk 0:01:11.5]} 28... Kxh8 {[%clk 0:00:36.7]} 29. Qh7# {[%clk
0:01:12.4]} 1-0

[Event "*** SCC Grand Prix: Titled Tuesday Blitz"]
[Site "Chess.com"]
[Date "2020.07.14"]
[Round "5"]
[White "ARMQUEEN"]
[Black "StephenDedalus83"]
[Result "0-1"]
[WhiteElo "2440"]
[BlackElo "2804"]
[TimeControl "180+1"]
[EndTime "10:54:31 PDT"]
[Termination "StephenDedalus83 won by resignation"]

1. e4 {[%clk 0:03:00.9]} 1... c5 {[%clk 0:02:59.6]} 2. Nc3 {[%clk 0:03:00.2]}
2... Nc6 {[%clk 0:02:59.9]} 3. Bb5 {[%clk 0:02:59.4]} 3... Nd4 {[%clk
0:02:58.9]} 4. Bc4 {[%clk 0:02:58.4]} 4... e6 {[%clk 0:02:58.8]} 5. Nge2 {[%clk
0:02:57.4]} 5... a6 {[%clk 0:02:57.1]} 6. Nxd4 {[%clk 0:02:52]} 6... cxd4 {[%clk
0:02:56.6]} 7. Ne2 {[%clk 0:02:51.9]} 7... Nf6 {[%clk 0:02:56]} 8. d3 {[%clk
0:02:51.8]} 8... Bc5 {[%clk 0:02:53.5]} 9. Bb3 {[%clk 0:02:49.4]} 9... d5 {[%clk
0:02:52.6]} 10. e5 {[%clk 0:02:48.9]} 10... Ng4 {[%clk 0:02:50.1]} 11. Bf4
{[%clk 0:02:45.6]} 11... Qc7 {[%clk 0:02:42.9]} 12. h3 {[%clk 0:02:18.3]} 12...
Nxe5 {[%clk 0:02:41.5]} 13. c3 {[%clk 0:02:18]} 13... dxc3 {[%clk 0:02:34.2]}
14. d4 {[%clk 0:02:16.6]} 14... cxb2 {[%clk 0:02:33.7]} 15. Rb1 {[%clk
0:02:14.9]} 15... Ba3 {[%clk 0:02:08.6]} 16. Bxe5 {[%clk 0:02:07.8]} 16... Qa5+
{[%clk 0:02:08.4]} 17. Qd2 {[%clk 0:02:05.1]} 17... Bb4 {[%clk 0:02:07.4]} 18.
Rxb2 {[%clk 0:01:57.4]} 18... Bxd2+ {[%clk 0:02:06.8]} 19. Rxd2 {[%clk
0:01:58.3]} 19... O-O {[%clk 0:02:06.4]} 20. Bf4 {[%clk 0:01:56.7]} 20... Bd7
{[%clk 0:02:04]} 21. O-O {[%clk 0:01:55.9]} 21... Rac8 {[%clk 0:02:03.9]} 22.
Ng3 {[%clk 0:01:51.1]} 22... Ba4 {[%clk 0:02:00.1]} 23. Rd3 {[%clk 0:01:49]}
23... Bb5 {[%clk 0:01:59.3]} 24. Rf3 {[%clk 0:01:43.5]} 24... Bxf1 {[%clk
0:01:58.8]} 25. Nxf1 {[%clk 0:01:43.5]} 25... Rc6 {[%clk 0:01:56.8]} 26. Ne3
{[%clk 0:01:31.3]} 26... Rc3 {[%clk 0:01:51.2]} 27. Rg3 {[%clk 0:01:27.1]} 27...
f6 {[%clk 0:01:48.4]} 28. Rg4 {[%clk 0:01:01.7]} 28... Rfc8 {[%clk 0:01:40.2]}
29. Bh6 {[%clk 0:00:58.3]} 29... g6 {[%clk 0:01:38.8]} 30. h4 {[%clk 0:00:57.8]}
30... Rc1+ {[%clk 0:01:33.1]} 31. Kh2 {[%clk 0:00:56.8]} 31... Qe1 {[%clk
0:01:33]} 32. Kg3 {[%clk 0:00:48.5]} 32... R8c3 {[%clk 0:01:26.3]} 33. h5 {[%clk
0:00:47.3]} 33... f5 {[%clk 0:01:26.2]} 34. Rg5 {[%clk 0:00:40.9]} 34... Rxe3+
{[%clk 0:01:25.4]} 0-1

[Event "*** SCC Grand Prix: Titled Tuesday Blitz"]
[Site "Chess.com"]
[Date "2020.07.14"]
[Round "5"]
[White "ShimanovAlex"]
[Black "Denmark2015"]
[Result "1-0"]
[WhiteElo "2821"]
[BlackElo "2577"]
[TimeControl "180+1"]
[EndTime "10:54:32 PDT"]
[Termination "ShimanovAlex won on time"]

1. d4 {[%clk 0:03:00.9]} 1... e6 {[%clk 0:01:38.3]} 2. Bf4 {[%clk 0:02:57.2]}
2... f5 {[%clk 0:01:36.3]} 3. Nc3 {[%clk 0:02:55.4]} 3... d5 {[%clk 0:01:34]} 4.
e3 {[%clk 0:02:54.5]} 4... Nf6 {[%clk 0:01:34]} 5. Nf3 {[%clk 0:02:53.8]} 5...
Bb4 {[%clk 0:01:34.1]} 6. Bd3 {[%clk 0:02:47]} 6... O-O {[%clk 0:01:33.8]} 7.
Ne5 {[%clk 0:02:42.4]} 7... Ne4 {[%clk 0:01:32.9]} 8. Bxe4 {[%clk 0:02:40.7]}
8... fxe4 {[%clk 0:01:32]} 9. O-O {[%clk 0:02:40.4]} 9... b6 {[%clk 0:01:24.3]}
10. Ne2 {[%clk 0:02:38.5]} 10... Ba6 {[%clk 0:01:23.8]} 11. c4 {[%clk
0:02:37.2]} 11... Bd6 {[%clk 0:01:20.1]} 12. b3 {[%clk 0:02:31.9]} 12... Nd7
{[%clk 0:01:15.4]} 13. Nc6 {[%clk 0:02:19.6]} 13... Qf6 {[%clk 0:01:04]} 14.
Bxd6 {[%clk 0:02:10.5]} 14... cxd6 {[%clk 0:01:03.5]} 15. cxd5 {[%clk 0:02:11]}
15... exd5 {[%clk 0:00:56.1]} 16. Nb4 {[%clk 0:02:10.9]} 16... Bb7 {[%clk
0:00:48.8]} 17. Nf4 {[%clk 0:02:09.9]} 17... Qf7 {[%clk 0:00:44.4]} 18. Rc1
{[%clk 0:02:06.7]} 18... Nf6 {[%clk 0:00:43.3]} 19. a4 {[%clk 0:02:03.1]} 19...
a5 {[%clk 0:00:40.6]} 20. Na2 {[%clk 0:02:03.3]} 20... g5 {[%clk 0:00:36.1]} 21.
Ne2 {[%clk 0:02:01.7]} 21... Ng4 {[%clk 0:00:25.1]} 22. h3 {[%clk 0:01:57]}
22... Nh6 {[%clk 0:00:16.5]} 23. Nac3 {[%clk 0:01:54.7]} 23... Ba6 {[%clk
0:00:15.3]} 24. Nb5 {[%clk 0:01:52.9]} 24... Rad8 {[%clk 0:00:08.9]} 25. Rc6
{[%clk 0:01:51]} 25... Bxb5 {[%clk 0:00:02.1]} 26. axb5 {[%clk 0:01:50.9]} 26...
Qb7 {[%clk 0:00:02.7]} 27. Qc2 {[%clk 0:01:50]} 27... Rf7 {[%clk 0:00:01.8]} 28.
Nc3 {[%clk 0:01:48.4]} 28... Nf5 {[%clk 0:00:02.7]} 29. Nxd5 {[%clk 0:01:48]}
29... Rdf8 {[%clk 0:00:01.5]} 30. Qxe4 {[%clk 0:01:46.1]} 1-0

[Event "*** SCC Grand Prix: Titled Tuesday Blitz"]
[Site "Chess.com"]
[Date "2020.07.14"]
[Round "5"]
[White "vpsetter"]
[Black "Msb2"]
[Result "0-1"]
[WhiteElo "2607"]
[BlackElo "2884"]
[TimeControl "180+1"]
[EndTime "10:54:36 PDT"]
[Termination "Msb2 won by resignation"]

1. e4 {[%clk 0:03:00.3]} 1... e6 {[%clk 0:03:00.5]} 2. d4 {[%clk 0:03:00.4]}
2... d5 {[%clk 0:03:01.1]} 3. Nc3 {[%clk 0:03:01]} 3... Nf6 {[%clk 0:02:58.9]}
4. e5 {[%clk 0:03:01.3]} 4... Nfd7 {[%clk 0:02:58.9]} 5. f4 {[%clk 0:03:00.7]}
5... c5 {[%clk 0:02:59.5]} 6. Nf3 {[%clk 0:03:00.8]} 6... Nc6 {[%clk 0:03:00.4]}
7. Be3 {[%clk 0:03:00.4]} 7... a6 {[%clk 0:03:01]} 8. Qd2 {[%clk 0:02:58.8]}
8... b5 {[%clk 0:03:01]} 9. Ne2 {[%clk 0:02:40.3]} 9... b4 {[%clk 0:02:58.5]}
10. g3 {[%clk 0:02:35.2]} 10... a5 {[%clk 0:02:58.5]} 11. Bg2 {[%clk 0:02:31.3]}
11... Ba6 {[%clk 0:02:58.2]} 12. O-O {[%clk 0:02:21.3]} 12... Qb6 {[%clk
0:02:48.9]} 13. Rf2 {[%clk 0:02:17.9]} 13... Bxe2 {[%clk 0:02:41.4]} 14. Rxe2
{[%clk 0:02:12.6]} 14... cxd4 {[%clk 0:02:41.7]} 15. Nxd4 {[%clk 0:02:12.2]}
15... Nxd4 {[%clk 0:02:42.6]} 16. Bxd4 {[%clk 0:02:10.8]} 16... Bc5 {[%clk
0:02:43.5]} 17. Bxc5 {[%clk 0:02:02.8]} 17... Qxc5+ {[%clk 0:02:40.4]} 18. Qe3
{[%clk 0:01:38.4]} 18... Qxe3+ {[%clk 0:02:38.4]} 19. Rxe3 {[%clk 0:01:38.5]}
19... Ke7 {[%clk 0:02:39.3]} 20. a3 {[%clk 0:01:20.9]} 20... Rhc8 {[%clk
0:02:29.3]} 21. axb4 {[%clk 0:01:00.5]} 21... axb4 {[%clk 0:02:30.2]} 22. Rxa8
{[%clk 0:00:59.5]} 22... Rxa8 {[%clk 0:02:31.1]} 23. Rb3 {[%clk 0:00:35.4]}
23... Ra4 {[%clk 0:02:25.8]} 24. c3 {[%clk 0:00:18.6]} 24... bxc3 {[%clk
0:02:26.7]} 25. Rxc3 {[%clk 0:00:13.4]} 25... Rb4 {[%clk 0:02:15.8]} 26. b3
{[%clk 0:00:13.5]} 26... g5 {[%clk 0:02:16.4]} 27. fxg5 {[%clk 0:00:09.7]} 27...
Nxe5 {[%clk 0:02:16.5]} 28. Bf1 {[%clk 0:00:06.7]} 28... d4 {[%clk 0:02:15]} 29.
Rc7+ {[%clk 0:00:04.1]} 29... Kd6 {[%clk 0:02:15.3]} 30. Rc8 {[%clk 0:00:03.8]}
30... Rxb3 {[%clk 0:02:15.5]} 31. Rd8+ {[%clk 0:00:02.8]} 31... Ke7 {[%clk
0:02:14.9]} 32. Rh8 {[%clk 0:00:02]} 32... Nf3+ {[%clk 0:02:12.3]} 33. Kf2
{[%clk 0:00:02.2]} 33... Nxg5 {[%clk 0:02:13.2]} 34. h4 {[%clk 0:00:02.5]} 34...
Ne4+ {[%clk 0:02:13.7]} 0-1